fUSD/lending_fUSD_20241227
["ID","MTS","AMOUNT","RATE_DAILY","PERIOD"]
[346815761,1735305040697,-500.0,0.00010877,2]
[346815762,1735305040707,-1206.8,0.00010877,2]
[346815763,1735305040717,-2021.4,0.00010877,2]
[346815764,1735305040727,-768.86,0.00010877,2]
[346815765,1735305040739,-500.0,0.00010877,2]
[346815766,1735305040748,-500.0,0.00010877,2]
[346815767,1735305040760,-500.0,0.00010877,2]
[346815768,1735305040769,-1481.21,0.00010877,2]
[346815769,1735305040782,-500.0,0.00010877,2]
[346815770,1735305040792,-500.0,0.00010877,2]
[346815771,1735305040801,-500.0,0.00010877,2]
[346815772,1735305040812,-500.0,0.00010877,2]
[346815773,1735305040822,-169.27520227,0.00010877,2]
[346815774,1735305040831,-500.0,0.00010877,2]
[346815775,1735305040841,-500.0,0.00010877,2]
[346815776,1735305040850,-500.0,0.00010877,2]
[346815777,1735305040859,-4178.2,0.00010877,2]
[346815778,1735305040868,-922.1,0.00010877,2]
[346815779,1735305040877,-500.0,0.00010877,2]
[346815780,1735305040887,-203.59973925,0.00010877,2]
[346815781,1735305040897,-500.0,0.00010877,2]
[346815782,1735305040906,-500.0,0.00010877,2]
[346815783,1735305040915,-500.0,0.00010877,2]
[346815784,1735305040925,-681.66,0.00010877,2]
[346815785,1735305040934,-500.0,0.00010877,2]
[346815786,1735305040943,-500.0,0.00010877,2]
[346815787,1735305040953,-500.0,0.00010877,2]
[346815788,1735305040962,-502.98105344,0.00010877,2]
[346815789,1735305040972,-500.0,0.00010877,2]
[346815790,1735305040982,-2150.45,0.00010877,2]
[346815791,1735305040992,-500.0,0.00010877,2]
[346815792,1735305041003,-500.0,0.00010877,2]
[346815793,1735305041014,-500.0,0.00010877,2]
[346815794,1735305041023,-500.0,0.00010877,2]
[346815795,1735305041032,-500.0,0.00010877,2]
[346815796,1735305041042,-500.0,0.00010877,2]
[346815797,1735305041051,-500.0,0.00010877,2]
[346815798,1735305041061,-500.0,0.00010877,2]
[346815799,1735305041071,-500.0,0.00010877,2]
[346815800,1735305041081,-500.0,0.00010877,2]
[346815801,1735305041090,-592.41,0.00010877,2]
[346815802,1735305041100,-500.0,0.00010877,2]
[346815803,1735305041109,-500.0,0.00010877,2]
[346815804,1735305041119,-2091.28,0.00010877,2]
[346815805,1735305041129,-1288.17,0.00010877,2]
[346815806,1735305041139,-500.0,0.00010877,2]
[346815807,1735305041150,-500.0,0.00010877,2]
[346815808,1735305041160,-500.0,0.00010877,2]
[346815809,1735305041169,-863.32,0.00010877,2]
[346815810,1735305041179,-1790.86,0.00010877,2]
[346815811,1735305041188,-500.0,0.00010877,2]
[346815812,1735305041198,-500.0,0.00010877,2]
[346815813,1735305041208,-500.0,0.00010877,2]
[346815814,1735305041217,-5971.03,0.00010877,2]
[346815815,1735305041227,-500.0,0.00010877,2]
[346815816,1735305041236,-500.0,0.00010877,2]
[346815817,1735305041246,-500.0,0.00010877,2]
[346815818,1735305041255,-1825.03,0.00010877,2]
[346815819,1735305041267,-1499.85,0.00010877,2]
[346815820,1735305041276,-500.0,0.00010877,2]
[346815821,1735305041286,-561.69,0.00010877,2]
[346815822,1735305041296,-500.0,0.00010877,2]
[346815823,1735305041306,-14118.07,0.00010877,2]
[346815824,1735305041316,-3816.72,0.00010877,2]
[346815825,1735305041326,-500.0,0.00010877,2]
[346815826,1735305041336,-3240.24,0.00010877,2]
[346815827,1735305041346,-550.06,0.00010877,2]
[346815828,1735305041355,-500.0,0.00010877,2]
[346815829,1735305041365,-1615.78,0.00010877,2]
[346815830,1735305041374,-500.00000001,0.00010877,2]
[346815831,1735305041384,-220.35154026,0.00010877,2]
[346815832,1735305041393,-1425.01,0.00010877,2]
[346815833,1735305041403,-500.0,0.00010877,2]
[346815834,1735305041412,-504.67001105,0.00010877,2]
[346815835,1735305041422,-9704.84,0.00010877,2]
[346815836,1735305041431,-500.0,0.00010877,2]
[346815837,1735305041441,-500.0,0.00010877,2]
[346815838,1735305041450,-5112.19,0.00010877,2]
[346815839,1735305041459,-2078.41,0.00010877,2]
[346815840,1735305041468,-1149.56,0.00010877,2]
[346815841,1735305041477,-833.82,0.00010877,2]
[346815842,1735305041486,-930.73,0.00010877,2]
[346815843,1735305041495,-20597.71,0.00010877,2]
[346815844,1735305041506,-1967.14,0.00010877,2]
[346815845,1735305041517,-500.0,0.00010877,2]
[346815846,1735305041527,-2467.58,0.00010877,2]
[346815847,1735305041536,-1239.89,0.00010877,2]
[346815848,1735305041547,-500.0,0.00010877,2]
[346815849,1735305041558,-863.75,0.00010877,2]
[346815850,1735305041568,-500.0,0.00010877,2]
[346815851,1735305041578,-500.0,0.00010877,2]
[346815852,1735305041588,-1390.47,0.00010877,2]
[346815853,1735305041598,-6959.61,0.00010877,2]
[346815854,1735305041607,-884.71,0.00010877,2]
[346815855,1735305041616,-1977.74,0.00010877,2]
[346815856,1735305041626,-500.0,0.00010877,2]
[346815857,1735305041635,-975.28,0.00010877,2]
[346815858,1735305041645,-500.0,0.00010877,2]
[346815859,1735305041654,-500.0,0.00010877,2]
[346815860,1735305041664,-500.0,0.00010877,2]
[346815861,1735305041674,-994.18,0.00010877,2]
[346815862,1735305041683,-2024.2,0.00010877,2]
[346815863,1735305041693,-500.0,0.00010877,2]
[346815864,1735305041702,-500.0,0.00010877,2]
[346815865,1735305041712,-500.0,0.00010877,2]
[346815866,1735305041721,-2394.54,0.00010877,2]
[346815867,1735305041733,-2592.55,0.00010877,2]
[346815868,1735305041742,-649.22666643,0.00010877,2]
[346815869,1735305041752,-500.0,0.00010877,2]
[346815870,1735305041763,-566.46,0.00010877,2]
[346815871,1735305041774,-178.76072853,0.00010877,2]
[346815872,1735305041783,-500.0,0.00010877,2]
[346815873,1735305041793,-500.0,0.00010877,2]
[346815874,1735305041802,-3297.6,0.00010877,2]
[346815875,1735305041813,-500.0,0.00010877,2]
[346815876,1735305041822,-500.0,0.00010877,2]
[346815877,1735305041832,-500.0,0.00010877,2]
[346815878,1735305041842,-1625.71,0.00010877,2]
[346815879,1735305041851,-500.0,0.00010877,2]
[346815880,1735305041861,-6600.8,0.00010877,2]
[346815881,1735305041871,-504.44732363,0.00010877,2]
[346815882,1735305041881,-500.0,0.00010877,2]
[346815883,1735305041889,-500.0,0.00010877,2]
[346815884,1735305041899,-500.0,0.00010877,2]
[346815885,1735305041909,-500.0,0.00010877,2]
[346815886,1735305041918,-500.0,0.00010877,2]
[346815887,1735305041927,-531.41525368,0.00010877,2]
[346815888,1735305041937,-1111.02,0.00010877,2]
[346815889,1735305041947,-6235.25,0.00010877,2]
[346815890,1735305041956,-500.0,0.00010877,2]
[346815891,1735305041966,-500.0,0.00010877,2]
[346815892,1735305041975,-500.0,0.00010877,2]
[346815893,1735305041984,-1242.15,0.00010877,2]
[346815894,1735305041994,-800.39,0.00010877,2]
[346815895,1735305042003,-822.75,0.00010877,2]
[346815896,1735305042014,-500.0,0.00010877,2]
[346815897,1735305042024,-500.0,0.00010877,2]
[346815898,1735305042033,-3889.43,0.00010877,2]
[346815899,1735305042043,-5890.48,0.00010877,2]
[346815900,1735305042053,-1448.12,0.00010877,2]
[346815901,1735305042063,-500.0,0.00010877,2]
[346815902,1735305042072,-855.61,0.00010877,2]
[346815903,1735305042082,-500.0,0.00010877,2]
[346815904,1735305042092,-500.0,0.00010877,2]
[346815905,1735305042101,-500.0,0.00010877,2]
[346815906,1735305042111,-675.61,0.00010877,2]
[346815907,1735305042122,-500.0,0.00010877,2]
[346815908,1735305042132,-507.52319461,0.00010877,2]
[346815909,1735305042143,-501.58570271,0.00010877,2]
[346815910,1735305042152,-500.0,0.00010877,2]
[346815911,1735305042162,-5221.54,0.00010877,2]
[346815912,1735305042171,-500.0,0.00010877,2]
[346815913,1735305042181,-500.0,0.00010877,2]
[346815914,1735305042191,-500.0,0.00010877,2]
[346815915,1735305042203,-874.3,0.00010877,2]
[346815916,1735305042213,-2125.92,0.00010877,2]
[346815917,1735305042224,-3587.2,0.00010877,2]
[346815918,1735305042234,-500.0,0.00010877,2]
[346815919,1735305042246,-500.0,0.00010877,2]
[346815920,1735305042255,-8168.61,0.00010877,2]
[346815921,1735305042266,-500.0,0.00010877,2]
[346815922,1735305042539,-500.0,0.00010877,2]
[346815923,1735305042549,-710.52,0.00010877,2]
[346815924,1735305042560,-500.0,0.00010877,2]
[346815925,1735305042570,-2322.39,0.00010877,2]
[346815926,1735305042580,-500.0,0.00010877,2]
[346815927,1735305042589,-1316.43,0.00010877,2]
[346815928,1735305042599,-500.0,0.00010877,2]
[346815929,1735305042609,-500.0,0.00010877,2]
[346815930,1735305042619,-500.0,0.00010877,2]
[346815931,1735305042629,-500.0,0.00010877,2]
[346815932,1735305042638,-500.0,0.00010877,2]
[346815933,1735305042648,-1226.23,0.00010877,2]
[346815934,1735305042658,-1031.74,0.00010877,2]
[346815935,1735305042667,-17103.06,0.00010877,2]
[346815936,1735305042677,-654.97,0.00010877,2]
[346815937,1735305042687,-509.75,0.00010877,2]
[346815938,1735305042697,-2016.95,0.00010877,2]
[346815939,1735305042706,-500.0,0.00010877,2]
[346815940,1735305042715,-2914.2,0.00010877,2]
[346815941,1735305042725,-3329.94,0.00010877,2]
[346815942,1735305042739,-500.0,0.00010877,2]
[346815943,1735305042749,-500.0,0.00010877,2]
[346815944,1735305042759,-500.0,0.00010877,2]
[346815946,1735305042769,-500.0,0.00010877,2]
[346815948,1735305042778,-4003.93,0.00010877,2]
[346815950,1735305042788,-1970.12,0.00010877,2]
[346815952,1735305042797,-1294.23,0.00010877,2]
[346815953,1735305042806,-500.0,0.00010877,2]
[346815954,1735305042816,-500.0,0.00010877,2]
[346815955,1735305042826,-500.0,0.00010877,2]
[346815956,1735305042836,-500.0,0.00010877,2]
[346815957,1735305042846,-3613.75,0.00010877,2]
[346815959,1735305042855,-732.43,0.00010877,2]
[346815961,1735305042865,-3115.05,0.00010877,2]
[346815962,1735305042875,-500.0,0.00010877,2]
[346815964,1735305042884,-500.0,0.00010877,2]
[346815965,1735305042894,-1688.9,0.00010877,2]
[346815966,1735305042904,-500.0,0.00010877,2]
[346815967,1735305042914,-500.0,0.00010877,2]
[346815968,1735305042924,-500.0,0.00010877,2]
[346815969,1735305042933,-500.0,0.00010877,2]
[346815971,1735305042943,-2987.42,0.00010877,2]
[346815973,1735305042953,-500.0,0.00010877,2]
[346815974,1735305042963,-500.0,0.00010877,2]
[346815975,1735305042972,-540.35,0.00010877,2]
[346815976,1735305042982,-4423.47,0.00010877,2]
[346815977,1735305042991,-839.79,0.00010877,2]
[346815978,1735305043001,-500.0,0.00010877,2]
[346815979,1735305043012,-3396.95,0.00010877,2]
[346815980,1735305043021,-500.0,0.00010877,2]
[346815981,1735305043031,-7083.64,0.00010877,2]
[346815982,1735305043040,-505.05914017,0.00010877,2]
[346815983,1735305043050,-4297.98,0.00010877,2]
[346815984,1735305043059,-500.0,0.00010877,2]
[346815985,1735305043069,-1023.76,0.00010877,2]
[346815986,1735305043078,-2716.31,0.00010877,2]
[346815987,1735305043088,-500.0,0.00010877,2]
[346815988,1735305043098,-200.80855242,0.00010877,2]
[346815989,1735305043107,-500.0,0.00010877,2]
[346815990,1735305043117,-500.0,0.00010877,2]
[346815991,1735305043126,-3464.81,0.00010877,2]
[346815992,1735305043139,-500.0,0.00010877,2]
[346815993,1735305043149,-958.14,0.00010877,2]
[346815994,1735305043159,-500.0,0.00010877,2]
[346815995,1735305043170,-500.0,0.00010877,2]
[346815996,1735305043180,-500.0,0.00010877,2]
[346815997,1735305043190,-500.0,0.00010877,2]
[346815998,1735305043199,-1426.41,0.00010877,2]
[346815999,1735305043209,-200.0,0.00010877,2]
[346816000,1735305043219,-1732.4,0.00010877,2]
[346816001,1735305043228,-977.73,0.00010877,2]
[346816002,1735305043237,-500.0,0.00010877,2]
[346816003,1735305043247,-1233.99,0.00010877,2]
[346816004,1735305043258,-723.52,0.00010877,2]
[346816005,1735305043268,-500.0,0.00010877,2]
[346816006,1735305043277,-1205.14,0.00010877,2]
[346816007,1735305043287,-6725.88,0.00010877,2]
[346816008,1735305043297,-500.0,0.00010877,2]
[346816009,1735305043306,-500.0,0.00010877,2]
[346816010,1735305043316,-500.0,0.00010877,2]
[346816011,1735305043325,-500.0,0.00010877,2]
[346816012,1735305043334,-2811.89,0.00010877,2]
[346816013,1735305043344,-1414.58,0.00010877,2]
[346816014,1735305043353,-2314.58,0.00010877,2]
[346816015,1735305043363,-500.0,0.00010877,2]
[346816016,1735305043372,-1120.2311025,0.00010877,3]
[346816017,1735305043381,-3320.43,0.00010877,2]
[346816018,1735305043390,-500.0,0.00010877,2]
[346816019,1735305043400,-17516.81,0.00010877,2]
[346816020,1735305043409,-500.0,0.00010877,2]
[346816021,1735305043419,-500.0,0.00010877,2]
[346816023,1735305043428,-500.0,0.00010877,2]
[346816024,1735305043438,-500.0,0.00010877,2]
[346816025,1735305043447,-3243.21,0.00010877,2]
[346816026,1735305043456,-1174.94,0.00010877,2]
[346816027,1735305043465,-500.0,0.00010877,2]
[346816028,1735305043475,-500.0,0.00010877,2]
[346816029,1735305043485,-1856.02,0.00010878,2]
[346816030,1735305043494,-3873.08,0.00010878,2]
[346816031,1735305043503,-1329.9,0.00010878,2]
[346816032,1735305043512,-500.0,0.00010878,2]
[346816033,1735305043522,-203.68176265,0.00010878,2]
[346816034,1735305043531,-2699.09,0.00010878,2]
[346816035,1735305043541,-500.0,0.00010878,2]
[346816036,1735305043550,-1329.69,0.00010878,2]
[346816037,1735305043560,-1305.35,0.00010878,2]
[346816038,1735305043569,-2274.75,0.00010878,2]
[346816039,1735305043579,-266.91126337,0.00010878,2]
[346816040,1735305043588,-2184.77,0.00010878,2]
[346816041,1735305043598,-1265.55,0.00010878,2]
[346816042,1735305043607,-1886.89,0.00010878,2]
[346816043,1735305043616,-500.0,0.00010878,2]
[346816044,1735305043625,-1762.67,0.00010878,2]
[346816045,1735305043635,-4643.33,0.00010878,2]
[346816046,1735305043644,-3056.23,0.00010878,2]
[346816047,1735305043654,-1433.05,0.00010878,2]
[346816048,1735305043664,-1928.64,0.00010878,2]
[346816049,1735305043673,-500.0,0.00010878,2]
[346816050,1735305043682,-1662.42,0.00010878,2]
[346816051,1735305043691,-1256.79,0.00010878,2]
[346816052,1735305043701,-500.0,0.00010878,2]
[346816053,1735305043711,-1284.01,0.00010878,2]
[346816054,1735305043720,-500.0,0.00010878,2]
[346816055,1735305043734,-1270.91,0.00010878,2]
[346816056,1735305043744,-500.0,0.00010878,2]
[346816057,1735305043753,-500.0,0.00010878,2]
[346816058,1735305043763,-500.0,0.00010878,2]
[346816059,1735305043772,-2441.84,0.00010878,2]
[346816060,1735305043782,-1818.7,0.00010878,2]
[346816061,1735305043793,-2707.45,0.00010878,2]
[346816062,1735305043803,-1269.16,0.00010878,2]
[346816063,1735305043813,-500.0,0.00010878,2]
[346816064,1735305043823,-4042.89,0.00010878,2]
[346816065,1735305043833,-4042.89,0.00010878,2]
[346816066,1735305043843,-1321.73,0.00010878,2]
[346816067,1735305043852,-1007.52,0.00010878,2]
[346816068,1735305043862,-1709.2,0.00010878,2]
[346816069,1735305043872,-500.0,0.00010878,2]
[346816070,1735305043882,-500.0,0.00010878,2]
[346816071,1735305043891,-2537.03,0.00010878,2]
[346816072,1735305043901,-4621.5,0.00010878,2]
[346816073,1735305043910,-1516.61,0.00010878,2]
[346816074,1735305043920,-500.0,0.00010878,2]
[346816075,1735305043929,-806.44,0.00010878,2]
[346816076,1735305043938,-3189.86,0.00010878,2]
[346816077,1735305043948,-500.0,0.00010878,2]
[346816078,1735305043958,-2910.72,0.00010878,2]
[346816079,1735305043967,-500.0,0.00010878,2]
[346816080,1735305043977,-1555.21,0.00010878,2]
[346816081,1735305043986,-625.15,0.00010878,2]
[346816082,1735305043996,-2097.93,0.00010878,2]
[346816083,1735305044005,-2247.1,0.00010878,2]
[346816084,1735305044016,-7723.07,0.00010878,2]
[346816085,1735305044026,-2403.71,0.00010878,2]
[346816086,1735305044035,-500.0,0.00010878,2]
[346816087,1735305044044,-1178.66,0.00010878,2]
[346816088,1735305044054,-1517.98,0.00010878,2]
[346816089,1735305044063,-2136.36,0.00010878,2]
[346816090,1735305044073,-1560.44,0.00010878,2]
[346816091,1735305044083,-954.3,0.00010878,2]
[346816092,1735305044092,-4978.71,0.00010878,2]
[346816093,1735305044102,-500.0,0.00010878,2]
[346816094,1735305044111,-500.0,0.00010878,2]
[346816095,1735305044120,-2271.48,0.00010878,2]
[346816096,1735305044130,-1781.64,0.00010878,2]
[346816097,1735305044139,-1883.99,0.00010878,2]
[346816098,1735305044150,-24521.35,0.00010878,2]
[346816099,1735305044159,-500.0,0.00010878,2]
[346816100,1735305044169,-1411.96,0.00010878,2]
[346816101,1735305044178,-1463.43,0.00010878,2]
[346816102,1735305044188,-14872.35,0.00010878,2]
[346816103,1735305044197,-1492.45,0.00010878,2]
[346816104,1735305044206,-2532.55,0.00010878,2]
[346816105,1735305044216,-500.0,0.00010878,2]
[346816106,1735305044226,-1515.85,0.00010878,2]
[346816107,1735305044236,-2024.88,0.00010878,2]
[346816108,1735305044246,-1498.72,0.00010878,2]
[346816109,1735305044256,-1334.48,0.00010878,2]
[346816110,1735305044267,-1726.18,0.00010878,2]
[346816111,1735305044276,-2195.02,0.00010878,2]
[346816112,1735305044286,-3515.3,0.00010878,2]
[346816113,1735305044302,-2931.87,0.00010878,2]
[346816114,1735305044321,-1670.74,0.00010878,2]
[346816115,1735305044332,-500.0,0.00010878,2]
[346816116,1735305044341,-5964.37,0.00010878,2]
[346816117,1735305044351,-500.0,0.00010878,2]
[346816118,1735305044360,-873.56,0.00010878,2]
[346816119,1735305044371,-997.07,0.00010878,2]
[346816120,1735305044382,-500.0,0.00010878,2]
[346816121,1735305044392,-500.0,0.00010878,2]
[346816122,1735305044402,-1035.66,0.00010878,2]
[346816123,1735305044411,-27037.63,0.00010878,2]
[346816124,1735305044422,-500.0,0.00010878,2]
[346816125,1735305044432,-1942.0,0.00010878,2]
[346816126,1735305044441,-1554.58,0.00010878,2]
[346816127,1735305044451,-3557.84,0.00010878,2]
[346816128,1735305044460,-2831.8,0.00010878,2]
[346816129,1735305044471,-500.0,0.00010878,2]
[346816130,1735305044481,-500.0,0.00010878,2]
[346816131,1735305044491,-500.0,0.00010878,2]
[346816132,1735305044501,-906.88,0.00010878,2]
[346816133,1735305044510,-1876.99,0.00010878,2]
[346816134,1735305044521,-1296.37,0.00010878,2]
[346816135,1735305044531,-500.0,0.00010878,2]
[346816136,1735305044540,-500.0,0.00010878,2]
[346816137,1735305044550,-500.0,0.00010878,2]
[346816138,1735305044560,-2057.68,0.00010878,2]
[346816139,1735305044569,-580.17,0.00010878,2]
[346816140,1735305044579,-541.2,0.00010878,2]
[346816141,1735305044588,-1734.87,0.00010878,2]
[346816142,1735305044597,-2865.27,0.00010878,2]
[346816143,1735305044607,-519.6488256,0.00010879,2]
[346816144,1735305044616,-500.0,0.00010879,2]
[346816145,1735305044626,-500.0,0.00010879,2]
[346816146,1735305044636,-290.23641098,0.00010879,2]
[346816147,1735305044646,-339.26703195,0.00010879,2]
[346816148,1735305044655,-500.0,0.00010879,2]
[346816149,1735305044664,-500.0,0.00010879,2]
[346816150,1735305044674,-500.0,0.00010879,2]
[346816151,1735305044684,-500.0,0.00010879,2]
[346816152,1735305044694,-500.0,0.00010879,2]
[346816153,1735305044703,-500.0,0.00010879,2]
[346816154,1735305044713,-500.0,0.00010879,2]
[346816155,1735305044722,-500.0,0.00010879,2]
[346816156,1735305044736,-500.0,0.00010879,2]
[346816157,1735305044745,-500.0,0.00010879,2]
[346816158,1735305044755,-500.0,0.00010879,2]
[346816159,1735305044765,-500.0,0.00010879,2]
[346816160,1735305044775,-500.0,0.00010879,2]
[346816161,1735305044784,-765.15,0.00010879,2]
[346816162,1735305044794,-500.0,0.00010879,2]
[346816163,1735305044804,-500.0,0.00010879,2]
[346816164,1735305044814,-500.0,0.00010879,2]
[346816165,1735305044825,-500.0,0.00010879,2]
[346816166,1735305044834,-1018.79,0.00010879,2]
[346816167,1735305044844,-500.0,0.00010879,2]
[346816168,1735305044854,-1598.45,0.00010879,2]
[346816169,1735305044863,-500.0,0.00010879,2]
[346816170,1735305044873,-500.0,0.00010879,2]
[346816171,1735305044883,-1063.95,0.00010879,2]
[346816172,1735305044893,-693.36,0.00010879,2]
[346816173,1735305044902,-500.0,0.00010879,2]
[346816174,1735305044912,-500.0,0.00010879,2]
[346816175,1735305044921,-500.0,0.00010879,2]
[346816176,1735305044931,-500.0,0.00010879,2]
[346816177,1735305044941,-500.0,0.00010879,2]
[346816178,1735305044950,-500.0,0.00010879,2]
[346816179,1735305044959,-500.0,0.00010879,2]
[346816180,1735305044968,-500.0,0.00010879,2]
[346816181,1735305044978,-500.0,0.00010879,2]
[346816182,1735305044987,-500.0,0.00010879,2]
[346816183,1735305044996,-500.0,0.00010879,2]
[346816184,1735305045006,-500.0,0.00010879,2]
[346816185,1735305045016,-500.0,0.00010879,2]
[346816186,1735305045025,-500.0,0.00010879,2]
[346816187,1735305045035,-500.0,0.00010879,2]
[346816188,1735305045044,-1417.71,0.00010879,2]
[346816189,1735305045054,-746.33,0.00010879,2]
[346816190,1735305045063,-736.45,0.00010879,2]
[346816191,1735305045072,-500.0,0.00010879,2]
[346816192,1735305045082,-238.50549969,0.00010879,2]
[346816193,1735305045091,-500.0,0.00010879,2]
[346816194,1735305045101,-904.89,0.00010879,2]
[346816195,1735305045110,-500.0,0.00010879,2]
[346816196,1735305045119,-500.0,0.00010879,2]
[346816197,1735305045129,-500.0,0.00010879,2]
[346816198,1735305045139,-1201.88,0.00010879,2]
[346816199,1735305045148,-500.0,0.00010879,2]
[346816200,1735305045158,-500.0,0.00010879,2]
[346816201,1735305045168,-500.0,0.00010879,2]
[346816202,1735305045177,-869.09,0.00010879,2]
[346816203,1735305045187,-1644.07,0.00010879,2]
[346816204,1735305045196,-500.0,0.00010879,2]
[346816205,1735305045206,-513.92,0.00010879,2]
[346816206,1735305045216,-500.0,0.00010879,2]
[346816207,1735305045225,-500.0,0.00010879,2]
[346816208,1735305045234,-500.0,0.00010879,2]
[346816209,1735305045244,-500.0,0.00010879,2]
[346816210,1735305045253,-931.26,0.00010879,2]
[346816211,1735305045264,-500.0,0.00010879,2]
[346816212,1735305045274,-508.59,0.00010879,2]
[346816213,1735305045283,-500.0,0.00010879,2]
[346816214,1735305045292,-523.22,0.00010879,2]
[346816215,1735305045302,-500.0,0.00010879,2]
[346816216,1735305045312,-500.0,0.00010879,2]
[346816217,1735305045321,-500.0,0.00010879,2]
[346816218,1735305045331,-1017.3,0.00010879,2]
[346816219,1735305045340,-627.5,0.00010879,2]
[346816220,1735305045349,-500.0,0.00010879,2]
[346816221,1735305045359,-500.0,0.00010879,2]
[346816222,1735305045368,-598.89,0.00010879,2]
[346816223,1735305045377,-1057.9,0.00010879,2]
[346816224,1735305045387,-824.93,0.00010879,2]
[346816225,1735305045399,-500.0,0.00010879,2]
[346816226,1735305045409,-500.0,0.00010879,2]
[346816227,1735305045418,-684.42,0.00010879,2]
[346816228,1735305045428,-500.0,0.00010879,2]
[346816229,1735305045437,-500.0,0.00010879,2]
[346816230,1735305045447,-500.0,0.00010879,2]
[346816231,1735305045457,-1029.61,0.00010879,2]
[346816232,1735305045466,-740.72,0.00010879,2]
[346816233,1735305045476,-500.0,0.00010879,2]
[346816234,1735305045485,-699.63,0.00010879,2]
[346816235,1735305045495,-500.0,0.00010879,2]
[346816236,1735305045504,-500.0,0.00010879,2]
[346816237,1735305045515,-1064.59,0.00010879,2]
[346816238,1735305045524,-500.0,0.00010879,2]
[346816239,1735305045533,-509.11,0.00010879,2]
[346816240,1735305045543,-500.0,0.00010879,2]
[346816241,1735305045552,-500.0,0.00010879,2]
[346816242,1735305045561,-500.0,0.00010879,2]
[346816243,1735305045571,-500.0,0.00010879,2]
[346816244,1735305045581,-500.0,0.00010879,2]
[346816245,1735305045590,-500.0,0.00010879,2]
[346816246,1735305045600,-500.0,0.00010879,2]
[346816247,1735305045609,-500.0,0.00010879,2]
[346816248,1735305045620,-500.0,0.00010879,2]
[346816249,1735305045630,-500.0,0.00010879,2]
[346816250,1735305045640,-500.0,0.00010879,2]
[346816251,1735305045649,-1444.64,0.00010879,2]
[346816252,1735305045659,-500.0,0.00010879,2]
[346816253,1735305045668,-838.94,0.00010879,2]
[346816254,1735305045677,-500.0,0.00010879,2]
[346816255,1735305045687,-500.0,0.00010879,2]
[346816256,1735305045697,-898.08,0.00010879,2]
[346816257,1735305045706,-500.0,0.00010879,2]
[346816258,1735305045715,-504.80707198,0.00010879,2]
[346816259,1735305045724,-500.0,0.00010879,2]
[346816260,1735305045738,-895.14,0.00010879,2]
[346816261,1735305045748,-500.0,0.00010879,2]
[346816263,1735305045758,-1402.56,0.00010879,2]
[346816264,1735305045768,-500.0,0.00010879,2]
[346816265,1735305045778,-500.0,0.00010879,2]
[346816266,1735305045788,-500.0,0.00010879,2]
[346816267,1735305045798,-500.0,0.00010879,2]
[346816268,1735305045809,-500.0,0.00010879,2]
[346816269,1735305045820,-500.0,0.00010879,2]
[346816270,1735305045830,-500.0,0.00010879,2]
[346816271,1735305045840,-500.0,0.00010879,2]